Cogmind - Beta 15 @@@ ROGUE MODE // 2025.06.18 @ 17:04:24 Player: pirx Result: Destroyed by UE-3VE(j) with Overtuned Pulse Rifle Performance ------------- Evolutions (0) 0 Regions Visited (3) 600 Robots Destroyed (8) 40 Value Destroyed (289) 289 Prototype IDs (6) 120 Alien Tech Used (0) 0 Bonus (780) 780 TOTAL SCORE: 1829 Bonus ------- Registered with UFD 300 Met Optimus in HQ 500 Friendly Fire -20 Cogmind --------- Core Integrity 0/250 Matter 300/300 Energy 140/140 System Corruption 0% Temperature Danger (402) Movement Walking (110) Location -7/Scraptown Parts ------- > --- POWER (1) -------- Light Deuterium Engine > --- PROPULSION (2) --- Aluminum Leg Overtuned Titanium Leg > --- UTILITY (2) ------ Small Storage Unit A0-MCA's Component Scanner > --- WEAPON (2) ------- Barrage Gun > --- INVENTORY (8) ---- Overtuned Titanium Leg Scrap Suit EM Disruption Field EM Pulse Gun Overtuned Pulse Rifle Makeshift Spear Peak State ------------ > --- POWER ------------ Light Deuterium Engine > --- PROPULSION ------- Aluminum Leg Overtuned Titanium Leg > --- UTILITY ---------- Small Storage Unit A0-MCA's Component Scanner > --- WEAPON ----------- Overtuned Pulse Rifle Light Assault Rifle > --- INVENTORY -------- Overtuned Titanium Leg Scrap Suit EM Disruption Field EM Pulse Gun Makeshift Spear [Rating: 23] Favorites ----------- Power Ion Engine Engine Ion Engine Propulsion Aluminum Leg Leg Aluminum Leg Utility Small Storage Unit Device EM Disruption Field Storage Small Storage Unit Processor A0-MCA's Component Scanner Weapon EM Pulse Gun Energy Gun EM Pulse Gun Ballistic Gun Light Assault Rifle Launcher Proton Missile Launcher Build | -11 -10 -10 -7 ------- Run | Yrd Mat Sub Scr Slots Evolved . | . . . . Power . | . . . . Propulsion . | . . . . Utility . | . . . . Weapon . | . . . . Parts Attached 19 | 6 1 1 11 Power 3 | 1 . 1 1 Engine 3 | 1 . 1 1 Core . | . . . . Reactor . | . . . . Propulsion 5 | 2 . . 3 Treads . | . . . . Leg 5 | 2 . . 3 Wheel . | . . . . Hover . | . . . . Flight . | . . . . Utility 4 | 1 1 . 2 Device 2 | . 1 . 1 Storage 1 | 1 . . . Processor 1 | . . . 1 Hackware . | . . . . Protection . | . . . . Artifact . | . . . . Weapon 7 | 2 . . 5 Energy Gun 3 | . . . 3 Energy Cannon . | . . . . Ballistic Gun 3 | 2 . . 1 Ballistic Cannon . | . . . . Launcher 1 | . . . 1 Special Weapon . | . . . . Impact Weapon . | . . . . Slashing Weapon . | . . . . Piercing Weapon . | . . . . Special Melee Weapon . | . . . . Unidentified Prototypes . | . . . . Parts Lost 6 | . . . 6 Power 1 | . . . 1 Propulsion 2 | . . . 2 Utility . | . . . . Weapon 3 | . . . 3 Highest Loss Streak 5 | . . . 5 To Critical Strikes . | . . . . Average Backups 7 | 2 5 8 7 Power . | . 1 1 . Propulsion 2 | 1 2 4 1 Utility 1 | . 1 2 1 Weapon 2 | . 1 1 2 Tool/Special . | . . . . Unused Backups 11 | . . 1 10 Power 2 | . . 1 1 Propulsion 3 | . . . 3 Utility 3 | . . . 3 Weapon 3 | . . . 3 Tool/Special . | . . . . Average Slot Usage (%) 99 | . 95 100 99 Engine 14 | . 14 14 14 Leg 27 | . 28 28 27 Device 9 | . 9 14 8 Storage 14 | . 14 14 14 Processor 4 | . . . 5 Energy Gun 20 | . . . 26 Ballistic Gun 7 | . 28 28 1 Peak Build Rating 23 | 6 7 8 23 Average Rating 13 | 3 6 7 16 On Entrance 5 | . 6 7 8 Naked Turns . | . . . . Heaviest Build 17 | 12 13 13 17 Greatest Support 29 | 20 20 20 29 Greatest Overweight (x) 4 | 3 . . 4 Average Overweight (x) . | . . . . Largest Inventory Capacity 8 | 8 8 8 8 Average Capacity 7 | 7 8 8 8 Most Carried 8 | 4 8 8 8 Average Carried 7 | 2 5 7 7 Final Capacity 8 | 8 8 8 8 Final Carried 8 | 4 8 8 7 Class Distribution -------------------- 95% | Mutant 4% | Scavenger-Mutant Dominant Class ---------------- Mutant | -10/Materials Mutant | -10/Subcaves Mutant | -7/Scraptown Resources | -11 -10 -10 -7 ----------- Run | Yrd Mat Sub Scr Matter Collected 467 | 97 207 14 149 Remotely 241 | . 207 14 20 Salvage Created 404 | . 10 60 334 Parts 20 | . 1 3 16 Haulers Intercepted . | . . . . Recyclers Shooed 1 | . 1 . . Parts Field Recycled . | . . . . Retrieved Matter . | . . . . Parts Self-Destructed 6 | . . 6 . Prevented . | . . . . Kills | -11 -10 -10 -7 ------- Run | Yrd Mat Sub Scr Combat Hostiles Destroyed 7 | . 1 1 5 Guns 4 | . 1 1 2 AOE 3 | . . . 3 Classes Destroyed 6 | . 2 1 3 Tunneler 1 | . 1 . . Swarmer 1 | . 1 . . Subdweller 1 | . . 1 . Explorer 1 | . . . 1 Ranger 1 | . . . 1 Scrapper 3 | . . . 3 Best Kill Streak 3 | . 1 2 3 Combat Bots Only 3 | . 1 1 3 Max Kills in Single Turn 2 | . 1 1 2 Gunslinging . | . . . . Exploded 2 | . . . 2 Melee . | . . . . Uniques/NPCs Destroyed . | . . . . Combat | -11 -10 -10 -7 -------- Run | Yrd Mat Sub Scr Hostile Shots Fired 74 | . 18 2 54 Missed 13 | . 5 2 6 Hits 61 | . 13 . 48 Projectile 61 | . 13 . 48 Critical Strikes 5 | . . . 5 Damage Taken 1097 | . 174 . 923 Core 267 | . 39 . 228 Absorbed by Shields . | . . . . Core Remaining (%) 100 | 100 . . . Volleys Fired 53 | . 17 2 34 Largest 2 | . 2 2 2 Hottest 100 | . 40 40 100 Shots Fired 94 | . 34 4 56 Gun 92 | . 34 4 54 Cannon . | . . . . Launcher 2 | . . . 2 Special . | . . . . Kinetic 58 | . 34 4 20 Thermal 7 | . . . 7 Explosive . | . . . . Electromagnetic 29 | . . . 29 Robot Hit Streak 6 | . 6 2 5 Robot Miss Streak 5 | . 4 3 5 Penetration Max . | . . . . Secondary Targets . | . . . . Shots Hit Robots 46 | . 16 2 28 Core Hits 23 | . 7 2 14 Critical Kills . | . . . . Critical Parts Destroyed 1 | . . . 1 Critical Strikes 2 | . . . 2 Destroy 1 | . . . 1 Corrupt 1 | . . . 1 Melee Attacks . | . . . . Impact . | . . . . Slashing . | . . . . Piercing . | . . . . Sneak Attacks . | . . . . Combat Hostiles . | . . . . Follow-up Attacks . | . . . . Damage Inflicted 678 | . 164 13 501 Guns 499 | . 140 13 346 Cannons . | . . . . Explosions 155 | . . . 155 Melee . | . . . . Ramming 24 | . 24 . . Kinetic 240 | . 140 13 87 Thermal 130 | . . . 130 Explosive . | . . . . Electromagnetic 284 | . . . 284 Impact . | . . . . Slashing . | . . . . Piercing . | . . . . Highest Corruption . | . . . . Average Corruption . | . . . . Corruption Purged . | . . . . Corruption Blocked . | . . . . Overload Shots . | . . . . Overflow Damage . | . . . . Projectiles . | . . . . Explosions . | . . . . Melee . | . . . . Knockbacks . | . . . . Impact . | . . . . Kinetic . | . . . . Secondary . | . . . . Self-Inflicted Damage 48 | . . . 48 Shots 3 | . . . 3 Rammed . | . . . . Targets Rammed 7 | . 7 . . Kicked 7 | . 7 . . Crushed . | . . . . Highest Temperature 488 | . 12 . 488 Average Temperature 175 | . 7 . 192 Received Heat Transfer 683 | . 90 . 593 Effects 5 | . . . 5 Shutdowns 4 | . . . 4 Damage (minor) 1 | . . . 1 Siege Activations . | . . . . Martial Activations . | . . . . Shielding Activations . | . . . . Robots Disrupted 1 | . . . 1 Combat Hostiles 1 | . . . 1 Robots Corrupted . | . . . . Combat Hostiles . | . . . . Parts Fried 4 | . . . 4 Impact Corruptions . | . . . . Robots Melted . | . . . . Combat Hostiles . | . . . . Parts Melted 1 | . . 1 . Heat Transferred 185 | . . . 185 Parts Sabotaged . | . . . . Parts Stolen . | . . . . Parts Stripped . | . . . . Power Chain Reactions 3 | . . . 3 Alert | -11 -10 -10 -7 ------- Run | Yrd Mat Sub Scr Maximum Alert Level . | . . . . Low Security (%) 100 | 100 100 . . Level 1 . | . . . . Level 2 . | . . . . Level 3 . | . . . . Level 4 . | . . . . Level 5 . | . . . . High Security . | . . . . Max Security . | . . . . Peak Influence 45 | . 45 . . Initial . | . . . . Average 6 | . 7 . . Influence Increases 50 | . 50 . . Destroy 0b10 Robot/C 20 | . 20 . . Destroy 0b10 Robot/NC 5 | . 5 . . Destroy Leader 10 | . 10 . . Lose Combat Pursuer 15 | . 15 . . Influence Decreases 50 | . 45 5 . Entered New Map 3 | . . 3 . Time Decay 47 | . 45 2 . Squads Dispatched 3 | . 3 . . Investigation 1 | . 1 . . Extermination . | . . . . Reinforcement 2 | . 2 . . Assault . | . . . . Garrison . | . . . . Intercept . | . . . . Searches Triggered . | . . . . Construction Impeded . | . . . . Haulers Reinforced . | . . . . Active Scanning Responses . | . . . . Cargo Convoy Interrupts . | . . . . Stealth | -11 -10 -10 -7 --------- Run | Yrd Mat Sub Scr Distress Signals 2 | . 2 . . Communications Jammed . | . . . . Distress Signals . | . . . . Times Spotted 31 | . 13 1 17 Peak Tracking Total 5 | . 5 1 3 Tactical Retreats 1 | . 1 . . Traps | -11 -10 -10 -7 ------- Run | Yrd Mat Sub Scr Traps Triggered . | . . . . Indirectly . | . . . . Trap Hack Attempts . | . . . . Triggered . | . . . . Disarmed . | . . . . Reprogrammed . | . . . . Reused . | . . . . Traps Extracted . | . . . . Installed . | . . . . Triggered . | . . . . Machines | -11 -10 -10 -7 ---------- Run | Yrd Mat Sub Scr Machines Disabled 1 | . . . 1 Max in Single Turn 1 | . . . 1 Machines Repaired . | . . . . Machines Dismantled . | . . . . Machines Sabotaged . | . . . . Overloaded Fab Kills . | . . . . Hacking | -11 -10 -10 -7 --------- Run | Yrd Mat Sub Scr Machines Accessed 7 | . . . 7 Terminals . | . . . . Fabricators . | . . . . Repair Stations . | . . . . Recycling Units . | . . . . Scanalyzers . | . . . . Garrison Access . | . . . . Total Hacks 57 | . . . 57 Successful 57 | . . . 57 Failed . | . . . . Catastrophic . | . . . . Database Lockouts . | . . . . Manual 4 | . . . 4 Terminals . | . . . . Fabricators . | . . . . Repair Stations . | . . . . Recycling Units . | . . . . Scanalyzers . | . . . . Garrison Access . | . . . . Terminal Hacks 57 | . . . 57 Record 57 | . . . 57 Fabricator Hacks . | . . . . Repair Station Hacks . | . . . . Recycling Unit Hacks . | . . . . Scanalyzer . | . . . . Garrison Access Hacks . | . . . . Unauthorized Hacks . | . . . . Terminals . | . . . . Fabricators . | . . . . Repair Stations . | . . . . Recycling Units . | . . . . Scanalyzers . | . . . . Garrison Access . | . . . . Data Cores Recovered . | . . . . Used . | . . . . Hacking Detections . | . . . . Full Trace Events . | . . . . Feedback Events . | . . . . Feedback Blocked . | . . . . Robot Schematics Acquired . | . . . . Robots Built . | . . . . Authchips . | . . . . Time . | . . . . Total Robot Build Rating . | . . . . Part Schematics Acquired . | . . . . Parts Built . | . . . . Authchips . | . . . . Time . | . . . . Total Part Build Rating . | . . . . Parts Repaired . | . . . . Time . | . . . . Parts Recycled . | . . . . Recycled Matter . | . . . . Retrieved Matter . | . . . . Retrieved Components . | . . . . Parts Scanalyzed . | . . . . Part Schematics Acquired . | . . . . Parts Damaged . | . . . . Bothacking | -11 -10 -10 -7 ------------ Run | Yrd Mat Sub Scr Used RIF Installer . | . . . . Robots Hacked . | . . . . Non-combat . | . . . . Combat . | . . . . Robot Hacks Applied . | . . . . Relay Couplers Released . | . . . . Fabnet Peak Effective % . | . . . . Robots Rewired . | . . . . Allies Hacked . | . . . . Hacks Repelled . | . . . . Allies | -11 -10 -10 -7 -------- Run | Yrd Mat Sub Scr Total Allies . | . . . . Largest Group . | . . . . Highest-Rated Group . | . . . . Highest-Rated Ally . | . . . . Total Orders . | . . . . Ally Attacks . | . . . . Total Damage . | . . . . Kills . | . . . . Allies Corrupted . | . . . . Allies Melted 6 | . . . 6 Intel | -11 -10 -10 -7 ------- Run | Yrd Mat Sub Scr Active Infowar (turns) . | . . . . Robot Analysis Total . | . . . . Derelict Logs Recovered . | . . . . Drone Launches . | . . . . Drone Recoveries . | . . . . Exploration | -11 -10 -10 -7 ------------- Run | Yrd Mat Sub Scr Turns Passed 2445 | 60 257 273 1855 Spaces Moved 1767 | 40 157 139 1431 Core 11 | 9 . . 2 Treads . | . . . . Legs 1756 | 31 157 139 1429 Wheels . | . . . . Hover . | . . . . Flight . | . . . . Fastest Speed 50 | 50 120 120 110 Average Speed 120 | 120 120 120 120 Slowest Speed 250 | 200 120 120 250 Overloaded Moves . | . . . . Propulsion Burnouts . | . . . . Robots Hopped . | . . . . Potential Cave-ins . | . . . . Cave-ins Triggered . | . . . . Exploration Rate (%) 33 | 3 39 11 79 Regions Visited 3 Branch Regions 2 Pre-discovered Areas . | . . . . Known Exits Taken . | . . . . Unknown Exits Taken 3 | 1 1 1 . Scrap Searched 5 | . . . 5 Spaces Dug . | . . . . Terrain Destroyed 17 | . . . 17 Melee . | . . . . Projectile 3 | . . . 3 AOE 14 | . . . 14 Terrain Rammed . | . . . . Walls Destroyed . | . . . . Machines Disabled . | . . . . Actions | -11 -10 -10 -7 --------- Run | Yrd Mat Sub Scr Total 1996 | 49 196 242 1509 Wait 115 | . 11 99 5 Move 1764 | 39 156 138 1431 Hop . | . . . . Pick Up 21 | 4 4 1 12 Fast Attach 9 | 6 1 . 2 Attach 6 | . . . 6 Detach 1 | . . . 1 Swap 6 | . . 1 5 Drop 12 | . . 1 11 Fire 53 | . 17 2 34 Melee . | . . . . Ram . | . . . . Kick 7 | . 7 . . Crush . | . . . . Escape Stasis . | . . . . Rewire 2 | . . . 2 Trap . | . . . . Miscellaneous . | . . . . Route ------- -11/Scrapyard -10/Materials (discovered 2 exits: [*Mat] / [*Sub]) -10/Subcaves (discovered 2 exits: [*Mat] / *Scr) -7/Scraptown (discovered 2 exits: [*Fac x2]) History --------- Turn | Location | Event 18 | -11/Scrapyard | Discovered new exit (range 16) 61 | -11/Scrapyard | Entered Materials 62 | -10/Materials | Met a group of wandering Federalists 257 | -10/Materials | Discovered new exit (range 16) 295 | -10/Materials | Discovered new exit (range 16) 308 | -10/Materials | Build established: Mutant 318 | -10/Materials | Entered Subcaves 318 | -10/Subcaves | Accompanied by 4 allies 319 | -10/Subcaves | Continued accompanying wandering Federalists (5) 351 | -10/Subcaves | Discovered new exit (range 12) 356 | -10/Subcaves | Lost 3 allies 573 | -10/Subcaves | Wandering Federalist uncovered a shortcut to Scraptown 591 | -10/Subcaves | Entered Scraptown 919 | -7/Scraptown | Heard Great Nut preacher, LISTEN AND RECITE! 1006 | -7/Scraptown | Visited Scrapoid Research Area 1050 | -7/Scraptown | Visited Cyclists 1332 | -7/Scraptown | Discovered new exit (range 5) 1431 | -7/Scraptown | Visited Cave Peace 1473 | -7/Scraptown | Visited Red Mages 1542 | -7/Scraptown | Visited Awakened 1581 | -7/Scraptown | Visited UFD Registry 1581 | -7/Scraptown | Registered with UFD as "Armordome" 1636 | -7/Scraptown | Visited Scrap Suit Storage 1643 | -7/Scraptown | Found Scrap Suit 1665 | -7/Scraptown | Visited Abandonware Association 1679 | -7/Scraptown | Learned abandonware demo "ERRANTS.EXE" 1679 | -7/Scraptown | Learned abandonware demo "REVENGE.EXE" 1711 | -7/Scraptown | Visited A0-MCA Data Center 1718 | -7/Scraptown | Given a B- rating by A0-MCA 1723 | -7/Scraptown | Found A0-MCA's Component Scanner 1796 | -7/Scraptown | Discovered new exit (range 3) 1925 | -7/Scraptown | Visited Cartography Club 2061 | -7/Scraptown | Met Optimus 2061 | -7/Scraptown | Accepted into 0bPrime 2131 | -7/Scraptown | Visited Science Testing Area 2211 | -7/Scraptown | Civil war broke out across Scraptown 2295 | -7/Scraptown | Lost 5 allies 2345 | -7/Scraptown | Core integrity fell below 50% 2359 | -7/Scraptown | Core integrity fell below 20% 2392 | -7/Scraptown | Lost 5 parts (1p2n2w) 2446 | -7/Scraptown | Destroyed by UE-3VE(j) with Overtuned Pulse Rifle Last Messages --------------- malfunctioning. TP-EBL(j): "Down with Optimus!" Ovr. Titanium Leg recovered from malfunction. HN-1HU(j) destroyed. Acquired 1 matter. UE-3VE(j) shuts down. Acquired 1 matter. I7-YBC(j) cannibalizes Lgt. Ion Engine to repair Lgt. Deuterium Engine. Acquired 1 matter. Ovr. Pulse Rifle suddenly begins malfunctioning. Acquired 1 matter. RI-R4P(p) suffers critical hit (Burn). RI-R4P(p) destroyed. Power failure, Lgt. Deuterium Engine shutdown. UE-3VE(j) reactivates. Lgt. Assault Rifle destroyed. Acquired 5 matter. Critical hit (Burn: +50). Acquired 4 matter. Map ----- +----------------------------------------------------+ | | | | | | | | | | | | | ?????????????????????????????????????????????????? | | ?????????????????????????????????????????????????? | | ?????????????????????????????????????????????????? | | ?????????????????????????????????????????????????? | | ?????????????????????????????????????????????????? | | ?????????????????????????????????????????????????? | | ?????????????????????????????????????????????????? | | ?????????????????????????????????????????????????? | | ?????????????????????????????????????????????????? | | ?????????????????????????????????????????????????? | | ?????????????????????????????????????????????????? | | ?????????????????????????????????#####???????????? | | ?????????????????????????????????#"""#???????????? | | ??###################???#######??#" "#???????????? | | ?#"""##"""##""|##"""#??## ;# ???# <%##??????????? | | ?#"" ##"" ##""|##!! ####!= #####=*=;#??????????? | | ?#"" =%==!=[== !!%=*#??????????? | | ?# !!%%[=%!jj !=! #??????????? | | ?#######################!=%%!;;########??????????? | | ???????????????????????##@=! ###?????????????????? | | ??????????????????????##!*= ;! #?????????????????? | | ???????????????######## # [ ####?????????????????? | | ???###########"""""""" # ##??????????????????? | | ???#"""""""""#""""""" "## # ??????????????????? | | #??# " " " #"""""" ""## # # ##????????????????? | | #??# #"""""""""## # ###??????????????? | | #??# "# #" #""" """## # ####X#??????????????? | | #??# "#X#" #""" """## #### ###??????????????? | | #??# "###" #""" "!"##! # #??????????????? | | #??# """"" #""""] """##% ###### #######????????? | | #??# #""" """## # *!= #????????? | | #??# #" ## # /%! #????????? | | #??#### ########### ##### ##%###########????????? | | ####### ########### #####j=#%=##???###???????????? | | """"""" """"""""" " """"" %==%"#??? ???????????? | | % !/%!!"#?? """???????????? | | ! *!= #?? "#???? "??????? | | =!* "#?" "## ??????? | | !%[%* ##" " " #?????? | | ! [ " "#?????????? | | """""""""""""""""""""""""/%! ##" "#?????????? | | """""""""""""""""""""""""%=[ "#?" """????????? | | ##### ################""!!= "#?? "" ???????? | | ##????????#" != "#??##?#####???????? | +----------------------------------------------------+ Best States ------------- Heat Dissipation 25 Energy Generation 15 Energy Capacity 250 Matter Stores 300 Matter Capacity 300 Sight Range 16 Terrain Scan Density 10 Evasion (%) 55 Item Schematics ----------------- None Robot Schematics ------------------ None Fabricated ------------ Nothing Repaired ---------- Nothing Alien Tech Used ----------------- None Achievements -------------- Librarian Use The Force Challenges ------------ None Game ------ Seed RocketTerrabombHammer Manual? 0 Play Time 00:51:31 Cumulative 4.3 hours Start 2025.05.30 @ 13:28:09 End 2025.06.18 @ 17:04:24 Sessions 3 Manual Loads 0 Difficulty Rogue Special Mode None Game No. 8 Rogue 8 Adventurer 0 Explorer 0 Win Type - Total 0 Types 0/0/0/0/0/0/0/0/0/0 Lore% 9 Gallery% 9 Achievement% 11 Wizard Run 0 Options --------- Layout 1 ASCII 0 Keyboard 0 Movement Mouse Keybinds 0 Fullscreen 1 Font 24/Smallcaps Map View 50x35 Zoom Use 0% Tactical HUD 0 Map Filters NONE Filters NONE Steam 1 RUN: 69caa8a2-76dc-465f-bb79-57e3f14ea6f7